Cogmind - Beta 13 @@@ ROGUE MODE // 2024.04.16 @ 23:53:16 Player: opdo Result: Self-destructed Performance ------------- Evolutions (2) 1000 Regions Visited (5) 1000 Robots Destroyed (14) 70 Value Destroyed (412) 412 Prototype IDs (1) 20 Alien Tech Used (0) 0 Bonus (0) 0 TOTAL SCORE: 2502 Bonus ------- None Cogmind --------- Core Integrity 494/550 Matter 255/300 Energy 100/100 System Corruption 0% Temperature Cool (0) Movement Hovering (165) Ox1 Location -8/Materials Parts ------- > --- POWER (1) -------- Backup Power I > --- PROPULSION (3) --- Compact Wheel Backup Propulsion I > --- UTILITY (5) ------ Small Storage Unit Advanced Targeting Computer Advanced Targeting Computer Advanced Targeting Computer > --- WEAPON (2) ------- Backup Laser I Backup Laser I > --- INVENTORY (8) ---- Light Ion Engine Light Ion Engine Aluminum Leg Aluminum Leg Hover Unit Signal Interpreter Peak State ------------ > --- POWER ------------ Light Nuclear Core > --- PROPULSION ------- Aluminum Leg Aluminum Leg Aluminum Leg > --- UTILITY ---------- Small Storage Unit Improved Terrain Scanner Light Armor Plating > --- WEAPON ----------- Improved EM Shotgun Heavy Assault Rifle > --- INVENTORY -------- Light Ion Engine Light Ion Engine Aluminum Leg Aluminum Leg Compact Wheel Compact Wheel Hover Unit Signal Interpreter [Rating: 16] Favorites ----------- Power Light Nuclear Core Engine Light Ion Engine Power Core Light Nuclear Core Propulsion Aluminum Leg Leg Aluminum Leg Wheel Compact Wheel Utility Small Storage Unit Device Improved Terrain Scanner Storage Small Storage Unit Processor Advanced Targeting Computer Protection Light Armor Plating Weapon Medium Laser Energy Gun Medium Laser Ballistic Gun Assault Rifle Build | -11 -10 -10 -9 -9 -8 ------- Run | Yrd Mat Min Mat Min Mat Slots Evolved 4 | . . . 2 . 2 Power . | . . . . . . Propulsion 1 | . . . 1 . . Utility 3 | . . . 1 . 2 Weapon . | . . . . . . Parts Attached 26 | 7 . 5 7 3 4 Power 4 | 1 . 1 . 1 1 Engine 2 | 1 . . . 1 . Core 2 | . . 1 . . 1 Reactor . | . . . . . . Propulsion 9 | 2 . 2 3 2 . Treads . | . . . . . . Leg 7 | 2 . 2 3 . . Wheel 2 | . . . . 2 . Hover . | . . . . . . Flight . | . . . . . . Utility 6 | 2 . . 1 . 3 Device 1 | 1 . . . . . Storage 1 | 1 . . . . . Processor 3 | . . . . . 3 Hackware . | . . . . . . Protection 1 | . . . 1 . . Artifact . | . . . . . . Weapon 7 | 2 . 2 3 . . Energy Gun 5 | 2 . 1 2 . . Energy Cannon . | . . . . . . Ballistic Gun 2 | . . 1 1 . . Ballistic Cannon . | . . . . . . Launcher . | . . . . . . Special Weapon . | . . . . . . Impact Weapon . | . . . . . . Slashing Weapon . | . . . . . . Piercing Weapon . | . . . . . . Special Melee Weapon . | . . . . . . Unidentified Prototypes 1 | . . . 1 . . Parts Lost 12 | . . 1 . 10 1 Power 3 | . . . . 2 1 Propulsion 4 | . . . . 4 . Utility 2 | . . . . 2 . Weapon 3 | . . 1 . 2 . Highest Loss Streak 10 | . . 1 . 10 1 To Critical Strikes . | . . . . . . Average Slot Usage (%) 93 | . 100 100 100 83 47 Engine 5 | . 14 1 . 4 . Core 6 | . . 12 11 6 4 Leg 26 | . 28 28 33 25 . Wheel 1 | . . . . 3 9 Device 11 | . 14 14 11 9 . Storage 12 | . 14 14 11 11 9 Processor 2 | . . . . . 25 Protection 3 | . . . 11 4 . Energy Gun 16 | . 28 14 11 9 . Ballistic Gun 7 | . . 13 11 9 . Naked Turns . | . . . . . . Heaviest Build 20 | 13 13 16 20 20 10 Greatest Support 32 | 20 20 20 30 32 16 Greatest Overweight (x) 2 | 2 . . . 1 . Average Overweight (x) . | . . . . . . Largest Inventory Capacity 8 | 8 8 8 8 8 8 Average Capacity 7 | 7 8 8 8 8 8 Most Carried 8 | 5 7 8 8 8 6 Average Carried 6 | 3 6 7 7 7 6 Final Capacity 8 | 8 8 8 8 8 8 Final Carried 8 | 5 7 8 8 6 6 Class Distribution -------------------- 50% | Scavenger-Mutant 49% | Mutant Dominant Class ---------------- Mutant | -10/Materials Scavenger-Mutant | -10/Mines Scavenger-Mutant | -9/Materials Scavenger-Mutant | -9/Mines Mutant | -8/Materials Resources | -11 -10 -10 -9 -9 -8 ----------- Run | Yrd Mat Min Mat Min Mat Matter Collected 480 | 192 78 83 127 . . Remotely . | . . . . . . Salvage Created 481 | 24 116 79 262 . . Parts 38 | 5 5 11 17 . . Haulers Intercepted . | . . . . . . Recyclers Shooed . | . . . . . . Parts Field Recycled . | . . . . . . Retrieved Matter . | . . . . . . Parts Self-Destructed . | . . . . . . Prevented . | . . . . . . Kills | -11 -10 -10 -9 -9 -8 ------- Run | Yrd Mat Min Mat Min Mat Combat Hostiles Destroyed 11 | . 2 4 5 . . Guns 11 | . 2 4 5 . . Classes Destroyed 5 | 1 2 1 1 . . Tunneler 1 | 1 . . . . . Watcher 2 | . 1 . 1 . . Swarmer 3 | . . 3 . . . Grunt 6 | . 2 1 3 . . Sentry 2 | . . . 2 . . Best Kill Streak 2 | 1 2 2 2 . . Combat Bots Only 2 | . 2 2 2 . . Max Kills in Single Turn 1 | 1 1 1 1 . . Gunslinging . | . . . . . . Exploded . | . . . . . . Melee . | . . . . . . Uniques/NPCs Destroyed . | . . . . . . Combat | -11 -10 -10 -9 -9 -8 -------- Run | Yrd Mat Min Mat Min Mat Hostile Shots Fired 107 | . 20 26 23 26 12 Missed 33 | . 9 6 11 4 3 Damage Taken 1411 | . 141 231 154 756 129 Core 347 | . 45 66 51 129 56 Absorbed by Shields . | . . . . . . Core Remaining (%) 70 | 100 . 55 . 55 . Volleys Fired 41 | 1 8 13 19 . . Largest 2 | 2 2 2 2 . . Hottest 90 | 90 90 90 85 . . Shots Fired 78 | 2 16 23 37 . . Gun 78 | 2 16 23 37 . . Cannon . | . . . . . . Launcher . | . . . . . . Special . | . . . . . . Kinetic 30 | . . 11 19 . . Thermal 36 | 1 8 11 16 . . Explosive . | . . . . . . Electromagnetic 12 | 1 8 1 2 . . Robot Hit Streak 6 | 1 5 4 6 . . Robot Miss Streak 6 | 1 2 3 6 . . Penetration Max . | . . . . . . Secondary Targets 2 | . . 1 1 . . Max Gunslinging Chain 1 | . . 1 1 . . Shots Hit Robots 46 | 1 10 13 22 . . Core Hits 25 | 1 5 7 12 . . Critical Kills . | . . . . . . Critical Parts Destroyed . | . . . . . . Critical Strikes 3 | . . 1 2 . . Burn 3 | . . 1 2 . . Melee Attacks . | . . . . . . Impact . | . . . . . . Slashing . | . . . . . . Piercing . | . . . . . . Sneak Attacks . | . . . . . . Combat Hostiles . | . . . . . . Follow-up Attacks . | . . . . . . Damage Inflicted 723 | 25 147 227 324 . . Guns 704 | 25 147 208 324 . . Cannons . | . . . . . . Explosions . | . . . . . . Melee . | . . . . . . Ramming 19 | . . 19 . . . Kinetic 235 | . . 98 137 . . Thermal 310 | 12 36 110 152 . . Explosive . | . . . . . . Electromagnetic 159 | 13 111 . 35 . . Impact . | . . . . . . Slashing . | . . . . . . Piercing . | . . . . . . Highest Corruption . | . . . . . . Average Corruption . | . . . . . . Corruption Purged . | . . . . . . Corruption Blocked . | . . . . . . Overload Shots . | . . . . . . Overflow Damage . | . . . . . . Projectiles . | . . . . . . Explosions . | . . . . . . Melee . | . . . . . . Knockbacks . | . . . . . . Impact . | . . . . . . Kinetic . | . . . . . . Secondary . | . . . . . . Self-Inflicted Damage . | . . . . . . Shots . | . . . . . . Rammed . | . . . . . . Targets Rammed 4 | . . 4 . . . Kicked 4 | . . 4 . . . Crushed . | . . . . . . Highest Temperature 273 | 30 273 197 195 1 . Average Temperature 89 | 18 129 88 76 1 . Received Heat Transfer 397 | . 63 132 84 82 36 Siege Activations . | . . . . . . Robots Corrupted . | . . . . . . Combat Hostiles . | . . . . . . Parts Fried 1 | . 1 . . . . Impact Corruptions . | . . . . . . Robots Melted . | . . . . . . Combat Hostiles . | . . . . . . Parts Melted 2 | . . . 2 . . Heat Transferred 1036 | 37 111 370 518 . . Parts Sabotaged . | . . . . . . Parts Stolen . | . . . . . . Parts Stripped . | . . . . . . Power Chain Reactions . | . . . . . . Alert | -11 -10 -10 -9 -9 -8 ------- Run | Yrd Mat Min Mat Min Mat Peak Influence 292 | 5 107 161 292 128 67 Initial 113 | . 3 41 62 113 2 Average 101 | 1 66 115 193 101 18 Maximum Alert Level 1 | . . . 1 . . Low Security (%) 84 | 100 100 100 37 100 100 Level 1 15 | . . . 62 . . Level 2 . | . . . . . . Level 3 . | . . . . . . Level 4 . | . . . . . . Level 5 . | . . . . . . High Security . | . . . . . . Max Security . | . . . . . . Squads Dispatched 4 | . 1 . 1 . 2 Investigation 2 | . . . 1 . 1 Extermination . | . . . . . . Reinforcement 2 | . 1 . . . 1 Assault . | . . . . . . Garrison . | . . . . . . Intercept . | . . . . . . Searches Triggered . | . . . . . . Construction Impeded . | . . . . . . Haulers Reinforced . | . . . . . . Active Scanning Responses . | . . . . . . Cargo Convoy Interrupts . | . . . . . . Stealth | -11 -10 -10 -9 -9 -8 --------- Run | Yrd Mat Min Mat Min Mat Distress Signals 1 | . . . . . 1 Communications Jammed . | . . . . . . Distress Signals . | . . . . . . Times Spotted 35 | . 8 6 8 7 6 Peak Tracking Total 7 | . 4 3 3 5 7 Tactical Retreats 4 | . . 1 1 1 1 Traps | -11 -10 -10 -9 -9 -8 ------- Run | Yrd Mat Min Mat Min Mat Traps Triggered 1 | . . . 1 . . Indirectly . | . . . . . . Trap Hack Attempts . | . . . . . . Triggered . | . . . . . . Disarmed . | . . . . . . Reprogrammed . | . . . . . . Reused . | . . . . . . Traps Extracted . | . . . . . . Installed . | . . . . . . Triggered . | . . . . . . Machines | -11 -10 -10 -9 -9 -8 ---------- Run | Yrd Mat Min Mat Min Mat Machines Disabled 1 | . . . 1 . . Max in Single Turn 1 | . . . 1 . . Machines Repaired . | . . . . . . Machines Dismantled . | . . . . . . Machines Sabotaged . | . . . . . . Overloaded Fab Kills . | . . . . . . Hacking | -11 -10 -10 -9 -9 -8 --------- Run | Yrd Mat Min Mat Min Mat Machines Accessed 8 | . 5 . 2 . 1 Terminals 7 | . 5 . 2 . . Fabricators . | . . . . . . Repair Stations 1 | . . . . . 1 Recycling Units . | . . . . . . Scanalyzers . | . . . . . . Garrison Access . | . . . . . . Total Hacks 22 | . 12 . 7 . 3 Successful 9 | . 6 . 2 . 1 Failed 13 | . 6 . 5 . 2 Catastrophic . | . . . . . . Database Lockouts . | . . . . . . Manual 11 | . 6 . 5 . . Terminals 19 | . 12 . 7 . . Fabricators . | . . . . . . Repair Stations 3 | . . . . . 3 Recycling Units . | . . . . . . Scanalyzers . | . . . . . . Garrison Access . | . . . . . . Terminal Hacks 6 | . 4 . 2 . . Branch Access Points 1 | . . . 1 . . Emergency Access Points 1 | . 1 . . . . Alert Level 1 | . 1 . . . . Zone Layout 3 | . 2 . 1 . . Fabricator Hacks . | . . . . . . Repair Station Hacks 1 | . . . . . 1 Refit 1 | . . . . . 1 Recycling Unit Hacks . | . . . . . . Scanalyzer . | . . . . . . Garrison Access Hacks . | . . . . . . Unauthorized Hacks 2 | . 2 . . . . Terminals 2 | . 2 . . . . Botnet 2 | . 2 . . . . Fabricators . | . . . . . . Repair Stations . | . . . . . . Recycling Units . | . . . . . . Scanalyzers . | . . . . . . Garrison Access . | . . . . . . Data Cores Recovered . | . . . . . . Used . | . . . . . . Hacking Detections 8 | . 5 . 2 . 1 Full Trace Events 1 | . . . . . 1 Feedback Events . | . . . . . . Feedback Blocked . | . . . . . . Robot Schematics Acquired . | . . . . . . Robots Built . | . . . . . . Authchips . | . . . . . . Time . | . . . . . . Total Robot Build Rating . | . . . . . . Part Schematics Acquired . | . . . . . . Parts Built . | . . . . . . Authchips . | . . . . . . Time . | . . . . . . Total Part Build Rating . | . . . . . . Parts Repaired . | . . . . . . Time . | . . . . . . Parts Recycled . | . . . . . . Recycled Matter . | . . . . . . Retrieved Matter . | . . . . . . Retrieved Components . | . . . . . . Parts Scanalyzed . | . . . . . . Part Schematics Acquired . | . . . . . . Parts Damaged . | . . . . . . Bothacking | -11 -10 -10 -9 -9 -8 ------------ Run | Yrd Mat Min Mat Min Mat Used RIF Installer . | . . . . . . Robots Hacked . | . . . . . . Non-combat . | . . . . . . Combat . | . . . . . . Robot Hacks Applied . | . . . . . . Relay Couplers Released . | . . . . . . Fabnet Peak Effective % . | . . . . . . Robots Rewired . | . . . . . . Allies Hacked . | . . . . . . Hacks Repelled . | . . . . . . Allies | -11 -10 -10 -9 -9 -8 -------- Run | Yrd Mat Min Mat Min Mat Total Allies 1 | . . . . 1 . Largest Group 1 | . . . . 1 . Highest-Rated Group 31 | . . . . 31 . Highest-Rated Ally 31 | . . . . 31 . Total Orders . | . . . . . . Ally Attacks 3 | . . . . 3 . Total Damage 44 | . . . . 44 . Kills . | . . . . . . Allies Corrupted . | . . . . . . Allies Melted . | . . . . . . Intel | -11 -10 -10 -9 -9 -8 ------- Run | Yrd Mat Min Mat Min Mat Robot Analysis Total . | . . . . . . Derelict Logs Recovered . | . . . . . . Drone Launches . | . . . . . . Drone Recoveries . | . . . . . . Exploration | -11 -10 -10 -9 -9 -8 ------------- Run | Yrd Mat Min Mat Min Mat Turns Passed 1054 | 80 307 254 254 65 94 Spaces Moved 739 | 53 234 165 146 53 88 Core 9 | 9 . . . . . Treads . | . . . . . . Legs 633 | 44 234 165 146 44 . Wheels 97 | . . . . 9 88 Hover . | . . . . . . Flight . | . . . . . . Fastest Speed 50 | 50 120 120 120 100 100 Average Speed 117 | 116 120 120 120 117 100 Slowest Speed 190 | 150 120 120 120 190 100 Overloaded Moves . | . . . . . . Propulsion Burnouts . | . . . . . . Robots Hopped . | . . . . . . Cave-ins Triggered . | . . . . . . Exploration Rate (%) 21 | 4 48 26 12 20 17 Regions Visited 5 Branch Regions 2 Pre-discovered Areas . | . . . . . . Known Exits Taken 1 | . . . 1 . . Unknown Exits Taken 4 | 1 1 1 . 1 . Scrap Searched 1 | . . 1 . . . Spaces Dug . | . . . . . . Terrain Destroyed . | . . . . . . Melee . | . . . . . . Projectile . | . . . . . . AOE . | . . . . . . Terrain Rammed . | . . . . . . Walls Destroyed . | . . . . . . Machines Disabled . | . . . . . . Actions | -11 -10 -10 -9 -9 -8 --------- Run | Yrd Mat Min Mat Min Mat Total 844 | 65 244 197 191 55 92 Wait 21 | . 1 9 11 . . Move 734 | 52 233 164 145 52 88 Hop . | . . . . . . Pick Up 10 | 5 2 . 3 . . Fast Attach 13 | 7 . . 1 1 4 Attach 5 | . . 1 2 2 . Detach . | . . . . . . Swap 8 | . . 4 4 . . Drop 8 | . . 2 6 . . Fire 41 | 1 8 13 19 . . Melee . | . . . . . . Ram . | . . . . . . Kick 4 | . . 4 . . . Crush . | . . . . . . Escape Stasis . | . . . . . . Rewire . | . . . . . . Trap . | . . . . . . Miscellaneous . | . . . . . . Route ------- -11/Scrapyard -10/Materials (discovered 2 exits: *Mat / [*Min]) -10/Mines -9/Materials (discovered 2 exits: *Min x2) -9/Mines -8/Materials History --------- Turn | Location | Event 14 | -11/Scrapyard | Discovered new exit (range 16) 81 | -11/Scrapyard | Entered Materials 312 | -10/Materials | Discovered new exit (range 9) 317 | -10/Materials | Build established: Mutant 369 | -10/Materials | Discovered new exit (range 9) 388 | -10/Materials | Entered Mines 489 | -10/Mines | Discovered new exit (range 8) 642 | -10/Mines | Entered Materials 642 | -9/Materials | Evolved 2 slots: Propulsion x1, Utility x1 702 | -9/Materials | Build established: Scavenger-Mutant 888 | -9/Materials | Discovered new exit (range 7) 888 | -9/Materials | Identified exit to Mines 896 | -9/Materials | Entered Mines 897 | -9/Mines | Assembled infested the area 944 | -9/Mines | Discovered new exit (range 13) 950 | -9/Mines | Received a Mining Laser from a helpful Derelict 961 | -9/Mines | Entered Materials 961 | -8/Materials | Evolved 2 slots: Utility x2 992 | -8/Materials | Lost 10 parts (2p4n2u2w) 1055 | -8/Materials | Self-destructed Last Messages --------------- LOCATION=UNKNOWN GOAL=ESCAPE 00965_ Acquired Lgt. Nuclear Core. 00968_ Acquired Adv. Targeting Computer. 00986_ W-25 Informer sends out distress signal. 00995_ ALERT: Hostiles spotted, dispatching reinforcements to Terminal M009. 01007_ Lgt. Nuclear Core destroyed. 01013_ K-01 Serf collects debris. 01035_ T-07 Excavator is excavating. 01055_ Connecting with Repair Station... 01055_ Current location identified: Materials >>Refit Scanning configuration... Attaching: Backup Power I x1 Backup Propulsion I x1 Backup Laser I x2 01055_ ALERT: Suspicious activity at Repair Station M002. Dispatching Investigation squad. Map ----- +----------------------------------------------------+ | ?????# # #?????????????# #? | | ?????# # """ = ############### #? | | ???### # """ + #? | | ???# # + """ # #? | | ???? # # ############ #? | | ?????# #####+#### #??????????# #? | | ?????# #??????????# #? | | ?????# #??????????# #? | | ?????# #??????????# ? | | ?????## #??????????+ | | ??????# ######??????????? | | ??????# #???????????????? !!! | | ??????#"" #???????????????? !! | | #####?#"T #???????????????? !! | | # ?#"" #### #???????? | | # """ + ?????? | | # """ # ! ?????? ![? | | # """ + ##+####### #????????????? | | # """ # # #??####????????????? | | # """ # # """ #??????????????????? | | # ?#### """ #??????????????????? | | #####????# """ #??????????????????? | | ?????????# """ #??????????????????? | | ?????????# #??????????????????? | | ?????????# #??????????????????? | | ?????????# "@" #??????????????????? | | ?????????# "R" #??????????????????? | | ?????????# """ #??????????????????? | | ?????????# #??????????????????? | | ?????????#########??????????????????? | | ????????????????????????????????????? | | ????????????????????????????????????? | | ????????????????????????????????????? | | ????????????????????????????????????? | | ????????????????????????????????????? | | | | | | | | | | | | | | | | | | | | | | | | | | | | | | | +----------------------------------------------------+ Best States ------------- Heat Dissipation 31 Energy Generation 14 Energy Capacity 160 Matter Stores 300 Matter Capacity 300 Sight Range 16 Terrain Scan Range 16 Terrain Scan Density 10 Armor Coverage 150 Evasion (%) 55 Targeting Accuracy 24 Item Schematics ----------------- None Robot Schematics ------------------ None Fabricated ------------ Nothing Alien Tech Used ----------------- None Achievements -------------- None Challenges ------------ None Game ------ Seed NetworkStasisScrap Manual? 0 Play Time 00:09:22 Cumulative 40.3 hours Start 2024.04.16 @ 23:44:26 End 2024.04.16 @ 23:53:16 Sessions 1 Manual Loads 0 Difficulty Rogue Special Mode None Game No. 109 Rogue 107 Adventurer 2 Explorer 0 Win Type - Total 0 Types 0/0/0/0/0/0/0/0/0 Lore% 32 Gallery% 45 Achievement% 33 Wizard Run 0 Options --------- Layout 2 ASCII 0 Keyboard 0 Movement Arrows Keybinds 0 Fullscreen 2 Font 24/Smallcaps Map View 50x44 Zoom Use 0% Tactical HUD 1 Map Filters NONE Filters NONE Steam 1 RUN: 4659d483-c435-4dd2-9996-437f93874886